[Event "FIDE World School-ch O-13 2025"]
[Site "Vrnjacka Banja"]
[Date "2025.03.26"]
[Round "7.5"]
[White "Sukhanov, Nikita"]
[Black "Rusu, Lucas"]
[Result "0-1"]
[Annotator "NA RC"]
[ECO "B44"]
[WhiteElo "1764"]
[BlackElo "2049"]
[PlyCount "128"]
[EventDate "2025.03.19"]
[EventType "swiss"]
[EventCountry "SRB"]
[SourceTitle "playchess.com"]
[Source "ChessBase"]
[SourceQuality "1"]
[TimeControl "5400+30"]

1. e4 {[%emt 0:03:16]} c5 {[%emt 0:00:11]} 2. Nf3 {[%emt 0:00:15]} e6 {[%emt 0:00:07]} 3. d4 {[%emt 0:01:27]} cxd4 {[%emt 0:00:17]} 4. Nxd4 {[%emt 0:04:32]} Nc6 {[%emt 0:00:29]} 5. Nb5 {[%emt 0:00:39]} d6 {[%emt 0:05:10]} 6. c4 {[%emt 0:00:19]} a6 {[%emt 0:01:42]} 7. N5c3 {[%emt 0:00:33]} Nf6 {[%emt 0:01:13]} 8. Be2 {[%emt 0:02:00]} Be7 {[%emt 0:03:49]} 9. O-O {[%emt 0:00:19]} O-O {[%emt 0:02:07]} 10. Bf4 {[%emt 0:04:25]} b6 {[%emt 0:15:03]} 11. Re1 {[%emt 0:00:37]} Bb7 {[%emt 0:03:05]} 12. Nd2 {[%emt 0:01:04]} Qc7 {[%emt 0:04:54]} 13. Rc1 {[%emt 0:04:41]} Ne5 {[%emt 0:01:37]} 14. b4 {[%emt 0:04:29]} Rfd8 {[%emt 0:04:32]} 15. h3 {[%emt 0:04:36]} Rac8 {[%emt 0:09:45]} 16. Bf1 {[%emt 0:03:31]} Qb8 {[%emt 0:01:44]} 17. a3 {[%emt 0:05:36]} Bc6 {[%emt 0:04:54]} 18. Qb3 {[%emt 0:11:14]} Ng6 {[%emt 0:15:56]} 19. Be3 {[%emt 0:01:52]} Qb7 {[%emt 0:01:03]} 20. b5 {[%emt 0:03:38]} axb5 {[%emt 0:04:56]} 21. cxb5 {[%emt 0:01:03]} Be8 {[%emt 0:01:46]} 22. Nc4 {[%emt 0:02:16]} Nd7 {[%emt 0:01:02]} 23. Na4 {[%emt 0:01:09]} Nc5 {[%emt 0:00:29]} 24. Bxc5 {[%emt 0:01:14]} bxc5 {[%emt 0:01:02]} 25. Na5 {[%emt 0:03:47]} Qa8 {[%emt 0:01:54]} 26. Nc4 {[%emt 0:01:49]} Rb8 {[%emt 0:00:20]} 27. Nd2 {[%emt 0:02:10]} Ne5 {[%emt 0:07:21]} 28. Nc3 {[%emt 0:00:51]} Nc6 {[%emt 0:01:57]} 29. Nf3 {[%emt 0:01:24]} Bf6 {[%emt 0:01:59]} 30. a4 {[%emt 0:01:25]} Na5 {[%emt 0:00:08]} 31. Qa2 {[%emt 0:01:55]} d5 {[%emt 0:01:24]} 32. exd5 {[%emt 0:00:34]} exd5 {[%emt 0:00:00]} 33. Rxe8+ {[%emt 0:02:21]} Rxe8 {[%emt 0:00:01]} 34. Nxd5 {[%emt 0:00:14]} Bd8 {[%emt 0:00:52]} 35. Rxc5 {[%emt 0:00:55]} Rc8 {[%emt 0:02:12]} 36. Rxc8 {[%emt 0:02:18]} Qxc8 {[%emt 0:00:01]} 37. Ne3 {[%emt 0:02:52]} Qe6 {[%emt 0:02:37]} 38. Qc2 {[%emt 0:02:18]} Bb6 {[%emt 0:00:42]} 39. Ng4 {[%emt 0:02:51]} Rc8 {[%emt 0:00:31]} 40. Qd3 {[%emt 0:00:35]} Rd8 {[%emt 0:00:06]} 41. Qc2 {[%emt 0:00:09]} Rc8 {[%emt 0:00:01]} 42. Qd3 {[%emt 0:00:19]} Rd8 {[%emt 0:00:10]} 43. Qc2 {[%emt 0:00:40]} f6 {[%emt 0:00:43]} 44. Bd3 {[%emt 0:01:19]} h5 {[%emt 0:00:52]} 45. Bf5 {[%emt 0:01:03]} Qc4 {[%emt 0:01:02]} 46. Qxc4+ {[%emt 0:01:12]} Nxc4 {[%emt 0:00:01]} 47. Nxf6+ {[%emt 0:01:08]} gxf6 {[%emt 0:00:14]} 48. Be6+ {[%emt 0:00:03]} Kf8 {[%emt 0:00:05]} 49. Bxc4 {[%emt 0:00:04]} Rd1+ {[%emt 0:00:05]} 50. Kh2 {[%emt 0:01:26]} Ra1 {[%emt 0:00:18]} 51. Bb3 {[%emt 0:00:27]} Ra3 {[%emt 0:00:09]} 52. Bd5 {[%emt 0:02:29]} Bxf2 {[%emt 0:00:16]} 53. Bc6 {[%emt 0:00:53]} h4 {[%emt 0:00:13]} 54. b6 {[%emt 0:01:15]} Bg3+ {[%emt 0:02:05]} 55. Kh1 {[%emt 0:00:04]} Ra1+ {[%emt 0:00:37]} 56. Ng1 {[%emt 0:00:06]} Bf2 {[%emt 0:00:20]} 57. b7 {[%emt 0:00:15]} Rxg1+ {[%emt 0:00:19]} 58. Kh2 {[%emt 0:00:03]} Rb1 {[%emt 0:00:06]} 59. g4 {[%emt 0:00:03]} hxg3+ {[%emt 0:00:53]} 60. Kg2 {[%emt 0:00:04]} Rb3 {[%emt 0:00:53]} 61. h4 {[%emt 0:00:23]} Ba7 {[%emt 0:00:29]} 62. Bf3 {[%emt 0:00:15]} Bb8 {[%emt 0:00:04]} 63. a5 {[%emt 0:00:10]} Ra3 {[%emt 0:00:06]} 64. h5 {[%emt 0:00:15]} Kg7 {[%emt 0:00:05]} 0-1

[Event "FIDE World School-ch O-13 2025"]
[Site "Vrnjacka Banja"]
[Date "2025.03.26"]
[Round "7.6"]
[White "Ilcic, Aleksa"]
[Black "Petroff, Vlad"]
[Result "1-0"]
[Annotator "NA RC"]
[ECO "B12"]
[WhiteElo "1822"]
[BlackElo "2030"]
[PlyCount "79"]
[EventDate "2025.03.19"]
[EventType "swiss"]
[EventCountry "SRB"]
[SourceTitle "playchess.com"]
[Source "ChessBase"]
[SourceQuality "1"]
[TimeControl "5400+30"]

1. e4 {[%emt 0:00:02]} c6 {[%emt 0:00:19]} 2. d4 {[%emt 0:00:06]} d5 {[%emt 0:00:03]} 3. e5 {[%emt 0:00:07]} c5 {[%emt 0:00:17]} 4. dxc5 {[%emt 0:00:09]} e6 {[%emt 0:00:36]} 5. Qg4 {[%emt 0:00:08]} Nc6 {[%emt 0:08:22]} 6. Nf3 {[%emt 0:00:08]} Nge7 {[%emt 0:03:47]} 7. Nc3 {[%emt 0:12:23]} Ng6 {[%emt 0:06:40]} 8. Qg3 {[%emt 0:01:11]} Bxc5 {[%emt 0:05:51]} 9. h4 {[%emt 0:04:22]} h5 {[%emt 0:18:32]} 10. Bd3 {[%emt 0:05:13]} Nce7 {[%emt 0:03:36]} 11. Bg5 {[%emt 0:04:41]} Qb6 {[%emt 0:11:47]} 12. O-O {[%emt 0:04:16]} Bd7 {[%emt 0:06:55]} 13. Rab1 {[%emt 0:07:01]} Qc7 {[%emt 0:04:53]} 14. Ne2 {[%emt 0:32:08]} O-O {[%emt 0:09:16]} 15. b4 {[%emt 0:01:08]} Bb6 {[%emt 0:00:56]} 16. Bxe7 {[%emt 0:00:33]} Nxe7 {[%emt 0:00:14]} 17. Qg5 {[%emt 0:00:13]} f6 {[%emt 0:02:57]} 18. Qxh5 {[%emt 0:00:53]} Nf5 {[%emt 0:01:11]} 19. Bxf5 {[%emt 0:05:03]} exf5 {[%emt 0:00:08]} 20. exf6 {[%emt 0:01:09]} Rxf6 {[%emt 0:01:14]} 21. Ng5 {[%emt 0:01:35]} Rh6 {[%emt 0:02:06]} 22. Qf7+ {[%emt 0:00:06]} Kh8 {[%emt 0:00:17]} 23. g3 {[%emt 0:05:45]} Re8 {[%emt 0:05:33]} 24. Nf4 {[%emt 0:01:21]} Bb5 {[%emt 0:03:12]} 25. Rfe1 {[%emt 0:00:33]} Rc8 {[%emt 0:02:41]} 26. Rbc1 {[%emt 0:05:24]} a6 {[%emt 0:01:06]} 27. Re7 {[%emt 0:00:25]} Qc3 {[%emt 0:00:12]} 28. Kg2 {[%emt 0:01:13]} Qf6 {[%emt 0:00:55]} 29. Rce1 {[%emt 0:01:04]} Rf8 {[%emt 0:00:38]} 30. Qxf6 {[%emt 0:01:55]} Rhxf6 {[%emt 0:00:07]} 31. h5 {[%emt 0:05:45]} Bd8 {[%emt 0:00:43]} 32. Rxb7 {[%emt 0:00:00]} d4 {[%emt 0:00:34]} 33. Ra7 {[%emt 0:00:00]} Kg8 {[%emt 0:00:30]} 34. Nge6 {[%emt 0:00:00]} Re8 {[%emt 0:00:42]} 35. Rxg7+ {[%emt 0:00:11]} Kh8 {[%emt 0:00:06]} 36. Ng6+ {[%emt 0:00:11]} Rxg6 {[%emt 0:00:03]} 37. hxg6 {[%emt 0:00:18]} Bc6+ {[%emt 0:00:25]} 38. f3 {[%emt 0:00:06]} Rxe6 {[%emt 0:00:36]} 39. Rh7+ {[%emt 0:00:06]} Kg8 {[%emt 0:00:04]} 40. Rxe6 {[%emt 0:00:07]} 1-0

[Event "FIDE World School-ch O-13 2025"]
[Site "Vrnjacka Banja"]
[Date "2025.03.26"]
[Round "7.7"]
[White "Yang, Maxwell"]
[Black "Jayasooriya, Ruvin Sandharu"]
[Result "1-0"]
[Annotator "NA RC"]
[ECO "A72"]
[WhiteElo "1970"]
[BlackElo "1830"]
[PlyCount "117"]
[EventDate "2025.03.19"]
[EventType "swiss"]
[EventCountry "SRB"]
[SourceTitle "playchess.com"]
[Source "ChessBase"]
[SourceQuality "1"]
[TimeControl "5400+30"]

1. d4 {[%emt 0:01:32]} Nf6 {[%emt 0:00:10]} 2. c4 {[%emt 0:00:04]} c5 {[%emt 0:00:10]} 3. d5 {[%emt 0:00:05]} e6 {[%emt 0:00:09]} 4. Nc3 {[%emt 0:00:05]} exd5 {[%emt 0:00:07]} 5. cxd5 {[%emt 0:00:10]} d6 {[%emt 0:00:09]} 6. Nf3 {[%emt 0:00:03]} g6 {[%emt 0:00:16]} 7. Nd2 {[%emt 0:00:11]} Bg7 {[%emt 0:01:07]} 8. e4 {[%emt 0:00:08]} O-O {[%emt 0:00:55]} 9. Be2 {[%emt 0:00:50]} a6 {[%emt 0:01:00]} 10. a4 {[%emt 0:00:07]} Nbd7 {[%emt 0:02:11]} 11. Nc4 {[%emt 0:03:08]} Qe7 {[%emt 0:05:08]} 12. f3 {[%emt 0:01:26]} Nh5 {[%emt 0:01:36]} 13. Be3 {[%emt 0:02:24]} f5 {[%emt 0:05:58]} 14. exf5 {[%emt 0:03:30]} gxf5 {[%emt 0:00:07]} 15. O-O {[%emt 0:00:39]} Rb8 {[%emt 0:06:31]} 16. Bf2 {[%emt 0:11:06]} Nf4 {[%emt 0:08:07]} 17. Qd2 {[%emt 0:19:22]} Bh6 {[%emt 0:16:24]} 18. Be3 {[%emt 0:02:16]} Nxe2+ {[%emt 0:00:34]} 19. Qxe2 {[%emt 0:00:17]} Bxe3+ {[%emt 0:07:13]} 20. Qxe3 {[%emt 0:00:17]} Qxe3+ {[%emt 0:00:08]} 21. Nxe3 {[%emt 0:00:04]} b5 {[%emt 0:01:52]} 22. axb5 {[%emt 0:01:53]} axb5 {[%emt 0:00:05]} 23. f4 {[%emt 0:00:13]} b4 {[%emt 0:01:59]} 24. Ncd1 {[%emt 0:00:44]} Nb6 {[%emt 0:01:15]} 25. Rf2 {[%emt 0:02:30]} Bb7 {[%emt 0:01:52]} 26. Rd2 {[%emt 0:00:12]} Ra8 {[%emt 0:00:33]} 27. Rxa8 {[%emt 0:00:21]} Bxa8 {[%emt 0:00:14]} 28. b3 {[%emt 0:00:22]} Kg7 {[%emt 0:01:33]} 29. Nb2 {[%emt 0:01:01]} Kf6 {[%emt 0:01:43]} 30. Kf2 {[%emt 0:06:40]} Re8 {[%emt 0:01:25]} 31. Nbc4 {[%emt 0:04:53]} Nxc4 {[%emt 0:01:09]} 32. Nxc4 {[%emt 0:00:05]} Re4 {[%emt 0:00:43]} 33. g3 {[%emt 0:10:39]} Rd4 {[%emt 0:01:18]} 34. Rxd4 {[%emt 0:01:30]} cxd4 {[%emt 0:00:06]} 35. Ke2 {[%emt 0:00:06]} Bxd5 {[%emt 0:01:04]} 36. Kd3 {[%emt 0:00:06]} Be6 {[%emt 0:02:58]} 37. Kxd4 {[%emt 0:00:16]} Kg6 {[%emt 0:02:21]} 38. Nxd6 {[%emt 0:02:24]} Bxb3 {[%emt 0:00:06]} 39. Kc5 {[%emt 0:28:21]} Bd1 {[%emt 0:05:22]} 40. Kxb4 {[%emt 0:00:00]} h5 {[%emt 0:00:34]} 41. h4 {[%emt 0:00:00]} Kf6 {[%emt 0:00:39]} 42. Kc5 {[%emt 0:00:00]} Bg4 {[%emt 0:01:34]} 43. Nb5 {[%emt 0:00:00]} Ke6 {[%emt 0:00:52]} 44. Nd4+ {[%emt 0:00:00]} Kf6 {[%emt 0:00:06]} 45. Kd6 {[%emt 0:00:00]} Bh3 {[%emt 0:00:31]} 46. Ne2 {[%emt 0:00:00]} Bg4 {[%emt 0:00:24]} 47. Nc3 {[%emt 0:00:00]} Bf3 {[%emt 0:03:58]} 48. Nd5+ {[%emt 0:00:00]} Kf7 {[%emt 0:00:42]} 49. Ke5 {[%emt 0:00:00]} Bg4 {[%emt 0:00:18]} 50. Ne3 {[%emt 0:00:00]} Bh3 {[%emt 0:00:55]} 51. Nxf5 {[%emt 0:00:00]} Kg6 {[%emt 0:00:28]} 52. Ne3 {[%emt 0:00:00]} Kh6 {[%emt 0:00:37]} 53. Kf6 {[%emt 0:00:00]} Bd7 {[%emt 0:00:46]} 54. Nf5+ {[%emt 0:00:00]} Kh7 {[%emt 0:00:11]} 55. Kg5 {[%emt 0:00:00]} Be8 {[%emt 0:00:10]} 56. Nd6 {[%emt 0:00:00]} Bc6 {[%emt 0:00:40]} 57. Kxh5 {[%emt 0:00:00]} Bf3+ {[%emt 0:00:22]} 58. Kg5 {[%emt 0:00:00]} Kg7 {[%emt 0:00:17]} 59. Nf5+ {[%emt 0:00:00]} 1-0

[Event "FIDE World School-ch O-13 2025"]
[Site "Vrnjacka Banja"]
[Date "2025.03.26"]
[Round "7.8"]
[White "Simiyu Jadon"]
[Black "Ritesh Maddukuri"]
[Result "1/2-1/2"]
[Annotator "NA RC"]
[ECO "C04"]
[WhiteElo "1937"]
[BlackElo "1773"]
[PlyCount "50"]
[EventDate "2025.03.19"]
[EventType "swiss"]
[EventCountry "SRB"]
[SourceTitle "playchess.com"]
[Source "ChessBase"]
[SourceQuality "1"]
[TimeControl "5400+30"]

1. e4 {[%emt 0:01:21]} e6 {[%emt 0:00:37]} 2. d4 {[%emt 0:00:07]} d5 {[%emt 0:00:07]} 3. Nd2 {[%emt 0:00:07]} Nc6 {[%emt 0:00:09]} 4. Ngf3 {[%emt 0:00:07]} Nf6 {[%emt 0:00:07]} 5. e5 {[%emt 0:00:07]} Nd7 {[%emt 0:00:11]} 6. Nb3 {[%emt 0:00:06]} a5 {[%emt 0:00:24]} 7. a4 {[%emt 0:00:08]} Be7 {[%emt 0:00:06]} 8. c3 {[%emt 0:00:18]} f6 {[%emt 0:03:30]} 9. exf6 {[%emt 0:01:15]} Bxf6 {[%emt 0:00:09]} 10. Be2 {[%emt 0:06:09]} O-O {[%emt 0:02:54]} 11. O-O {[%emt 0:00:18]} e5 {[%emt 0:00:58]} 12. dxe5 {[%emt 0:00:17]} Ndxe5 {[%emt 0:00:07]} 13. Nxe5 {[%emt 0:02:34]} Nxe5 {[%emt 0:00:15]} 14. Nd4 {[%emt 0:08:40]} c6 {[%emt 0:17:20]} 15. h3 {[%emt 0:09:31]} Qc7 {[%emt 0:10:05]} 16. Qc2 {[%emt 0:09:02]} Bd7 {[%emt 0:07:02]} 17. b3 {[%emt 0:16:53]} Nf7 {[%emt 0:09:06]} 18. f4 {[%emt 0:15:07]} Nd6 {[%emt 0:01:49]} 19. Bd3 {[%emt 0:03:54]} Bxd4+ {[%emt 0:02:21]} 20. cxd4 {[%emt 0:00:20]} Bf5 {[%emt 0:00:34]} 21. Ba3 {[%emt 0:00:59]} Rf7 {[%emt 0:04:50]} 22. Bxd6 {[%emt 0:04:01]} Bxd3 {[%emt 0:00:13]} 23. Qxd3 {[%emt 0:00:55]} Qxd6 {[%emt 0:00:06]} 24. g3 {[%emt 0:20:14]} Re8 {[%emt 0:39:30]} 25. Rae1 Ree7 {[%emt 0:00:30]} 1/2-1/2